[Event "*** Titled Tuesday Blitz"]
[Site "Chess.com"]
[Date "2020.03.03"]
[Round "4"]
[White "INLOVEWITHF"]
[Black "arjwezhrtdrz"]
[Result "0-1"]
[WhiteElo "2411"]
[BlackElo "2145"]
[TimeControl "180+1"]
[EndTime "13:42:09 PST"]
[Termination "arjwezhrtdrz won by resignation"]

1. d4 {[%clk 0:03:00.9]} 1... d6 {[%clk 0:02:51.9]} 2. Nc3 {[%clk 0:02:50.9]}
2... e5 {[%clk 0:02:49.9]} 3. Nf3 {[%clk 0:02:51.4]} 3... Nd7 {[%clk 0:02:49.3]}
4. e4 {[%clk 0:02:51.8]} 4... c6 {[%clk 0:02:48.3]} 5. Bc4 {[%clk 0:02:40.6]}
5... Be7 {[%clk 0:02:47.9]} 6. O-O {[%clk 0:02:35.9]} 6... Ngf6 {[%clk
0:02:47.8]} 7. dxe5 {[%clk 0:02:34.9]} 7... dxe5 {[%clk 0:02:47]} 8. a4 {[%clk
0:02:35.3]} 8... a5 {[%clk 0:02:45.7]} 9. Be3 {[%clk 0:02:23.3]} 9... O-O {[%clk
0:02:45]} 10. h3 {[%clk 0:02:21.4]} 10... Qc7 {[%clk 0:02:44.7]} 11. Qe1 {[%clk
0:02:04.9]} 11... h6 {[%clk 0:02:39.9]} 12. Rd1 {[%clk 0:01:40.5]} 12... Bc5
{[%clk 0:02:39.4]} 13. Bc1 {[%clk 0:01:36.4]} 13... Bb4 {[%clk 0:02:34.8]} 14.
Qe2 {[%clk 0:01:31.5]} 14... Be7 {[%clk 0:02:33.2]} 15. Nh4 {[%clk 0:01:27.2]}
15... Nc5 {[%clk 0:02:32.8]} 16. Nf5 {[%clk 0:01:25.9]} 16... Bxf5 {[%clk
0:02:31.3]} 17. exf5 {[%clk 0:01:26.8]} 17... Rad8 {[%clk 0:02:24.1]} 18. Rde1
{[%clk 0:01:25.7]} 18... Bd6 {[%clk 0:02:17.6]} 19. Be3 {[%clk 0:01:22.4]} 19...
Rfe8 {[%clk 0:02:16]} 20. g4 {[%clk 0:01:14.8]} 20... Ncd7 {[%clk 0:02:03.3]}
21. f3 {[%clk 0:01:12.3]} 21... Bc5 {[%clk 0:02:00.2]} 22. Kg2 {[%clk
0:01:09.9]} 22... Bxe3 {[%clk 0:01:59.8]} 23. Qxe3 {[%clk 0:01:10.8]} 23... Qb6
{[%clk 0:01:59.6]} 24. Bb3 {[%clk 0:01:05.7]} 24... Qxe3 {[%clk 0:01:59]} 25.
Rxe3 {[%clk 0:01:06.6]} 25... Kf8 {[%clk 0:01:53.4]} 26. Rfe1 {[%clk 0:01:05.6]}
26... Ng8 {[%clk 0:01:53.4]} 27. Ne4 {[%clk 0:01:02.6]} 27... Rb8 {[%clk
0:01:19.9]} 28. g5 {[%clk 0:00:39.1]} 28... hxg5 {[%clk 0:01:15.7]} 29. Nxg5
{[%clk 0:00:40]} 29... Nh6 {[%clk 0:01:15.8]} 30. Re4 {[%clk 0:00:20.8]} 30...
Nc5 {[%clk 0:01:04.8]} 31. Rxe5 {[%clk 0:00:19.7]} 31... Rxe5 {[%clk 0:01:04.2]}
32. Rxe5 {[%clk 0:00:20]} 32... Nxb3 {[%clk 0:01:04.4]} 33. cxb3 {[%clk
0:00:20.3]} 33... f6 {[%clk 0:01:02.4]} 34. Ne6+ {[%clk 0:00:20.3]} 34... Kf7
{[%clk 0:01:02.1]} 35. Rxa5 {[%clk 0:00:20.7]} 35... Nxf5 {[%clk 0:00:54.9]} 36.
Rxf5 {[%clk 0:00:20.4]} 36... Kxe6 {[%clk 0:00:55.1]} 37. Rf4 {[%clk 0:00:19.2]}
37... g5 {[%clk 0:00:54.5]} 38. Rb4 {[%clk 0:00:18.9]} 38... b5 {[%clk
0:00:53.7]} 39. axb5 {[%clk 0:00:17.4]} 39... Rxb5 {[%clk 0:00:53.2]} 40. Rxb5
{[%clk 0:00:17]} 40... cxb5 {[%clk 0:00:53.3]} 41. f4 {[%clk 0:00:17.2]} 41...
Kf5 {[%clk 0:00:52.3]} 42. fxg5 {[%clk 0:00:16.6]} 42... fxg5 {[%clk 0:00:52.1]}
43. Kf3 {[%clk 0:00:16.6]} 43... b4 {[%clk 0:00:48.6]} 44. Kg3 {[%clk
0:00:15.6]} 44... Kf6 {[%clk 0:00:15.8]} 45. Kf2 {[%clk 0:00:15]} 45... Ke6
{[%clk 0:00:13.9]} 46. Ke2 {[%clk 0:00:14.2]} 46... Kd6 {[%clk 0:00:10.3]} 47.
Kd2 {[%clk 0:00:11.7]} 47... Kc6 {[%clk 0:00:09.3]} 48. Ke3 {[%clk 0:00:10.4]}
48... Kd5 {[%clk 0:00:07.5]} 49. Kf3 {[%clk 0:00:09.5]} 49... Ke5 {[%clk
0:00:07.6]} 50. Ke3 {[%clk 0:00:09.6]} 50... Kf5 {[%clk 0:00:07]} 51. Kd4 {[%clk
0:00:09.3]} 51... Kf4 {[%clk 0:00:07.2]} 52. Kc4 {[%clk 0:00:09.9]} 52... Kg3
{[%clk 0:00:07.6]} 53. Kxb4 {[%clk 0:00:10.8]} 53... Kxh3 {[%clk 0:00:08.1]} 54.
Kc4 {[%clk 0:00:11.1]} 54... g4 {[%clk 0:00:08.9]} 55. Kd3 {[%clk 0:00:07.5]}
55... g3 {[%clk 0:00:09.8]} 56. Ke2 {[%clk 0:00:08.1]} 56... Kh2 {[%clk
0:00:10.1]} 57. Kf1 {[%clk 0:00:09]} 57... g2+ {[%clk 0:00:11]} 0-1

[Event "*** Titled Tuesday Blitz"]
[Site "Chess.com"]
[Date "2020.03.03"]
[Round "4"]
[White "SerGo055"]
[Black "Rubinstein_Akiba"]
[Result "1/2-1/2"]
[WhiteElo "2525"]
[BlackElo "2351"]
[TimeControl "180+1"]
[EndTime "13:42:20 PST"]
[Termination "Game drawn - insufficient material"]

1. d4 {[%clk 0:03:00.9]} 1... Nf6 {[%clk 0:02:59.1]} 2. Nf3 {[%clk 0:03:01.8]}
2... e6 {[%clk 0:02:57.8]} 3. c4 {[%clk 0:03:01.6]} 3... d5 {[%clk 0:02:57.1]}
4. Nc3 {[%clk 0:03:01.3]} 4... Bb4 {[%clk 0:02:57]} 5. Bg5 {[%clk 0:03:01.4]}
5... O-O {[%clk 0:02:55.6]} 6. e3 {[%clk 0:03:01.1]} 6... h6 {[%clk 0:02:55.8]}
7. Bxf6 {[%clk 0:02:58.3]} 7... Qxf6 {[%clk 0:02:56.7]} 8. Qb3 {[%clk
0:02:58.1]} 8... Bxc3+ {[%clk 0:02:56.1]} 9. bxc3 {[%clk 0:02:58.6]} 9... dxc4
{[%clk 0:02:53.1]} 10. Bxc4 {[%clk 0:02:57.8]} 10... c5 {[%clk 0:02:53.7]} 11.
O-O {[%clk 0:02:54.5]} 11... Nc6 {[%clk 0:02:53.8]} 12. Qa4 {[%clk 0:02:39.8]}
12... Bd7 {[%clk 0:02:40.9]} 13. Bb5 {[%clk 0:02:22.6]} 13... a6 {[%clk
0:02:36.7]} 14. Bxc6 {[%clk 0:02:22.5]} 14... Bxc6 {[%clk 0:02:37.6]} 15. Qd1
{[%clk 0:02:22.5]} 15... Rfd8 {[%clk 0:02:35.2]} 16. Ne5 {[%clk 0:02:19.6]}
16... Bb5 {[%clk 0:02:24.1]} 17. Re1 {[%clk 0:02:19.3]} 17... Rac8 {[%clk
0:02:20.1]} 18. a4 {[%clk 0:02:18.9]} 18... Be8 {[%clk 0:02:18.8]} 19. Qf3
{[%clk 0:02:15.3]} 19... cxd4 {[%clk 0:02:10.3]} 20. cxd4 {[%clk 0:02:12.6]}
20... b5 {[%clk 0:02:08.7]} 21. axb5 {[%clk 0:02:09.6]} 21... Qxf3 {[%clk
0:02:03.4]} 22. gxf3 {[%clk 0:02:06.2]} 22... Bxb5 {[%clk 0:02:03.9]} 23. Rec1
{[%clk 0:02:06.2]} 23... f6 {[%clk 0:02:02.9]} 24. Ng6 {[%clk 0:01:56.8]} 24...
Kf7 {[%clk 0:02:02.2]} 25. Nf4 {[%clk 0:01:56.7]} 25... g5 {[%clk 0:02:02]} 26.
Nh5 {[%clk 0:01:53.5]} 26... f5 {[%clk 0:02:00.1]} 27. Kg2 {[%clk 0:01:48]}
27... Ke7 {[%clk 0:01:56]} 28. f4 {[%clk 0:01:45.6]} 28... g4 {[%clk 0:01:53.1]}
29. h3 {[%clk 0:01:43.9]} 29... gxh3+ {[%clk 0:01:48.3]} 30. Kxh3 {[%clk
0:01:43.7]} 30... Kd6 {[%clk 0:01:44.6]} 31. Ng3 {[%clk 0:01:35.4]} 31... Kd5
{[%clk 0:01:35.9]} 32. Kg2 {[%clk 0:01:33.8]} 32... Kd6 {[%clk 0:01:34]} 33. f3
{[%clk 0:01:33.1]} 33... Rg8 {[%clk 0:01:32.6]} 34. Kf2 {[%clk 0:01:32.9]} 34...
Rh8 {[%clk 0:01:29.7]} 35. e4 {[%clk 0:01:31.7]} 35... fxe4 {[%clk 0:01:27.7]}
36. fxe4 {[%clk 0:01:31.7]} 36... h5 {[%clk 0:01:27.7]} 37. Rxc8 {[%clk
0:01:31.2]} 37... Rxc8 {[%clk 0:01:27.4]} 38. Nxh5 {[%clk 0:01:31.8]} 38... Rc2+
{[%clk 0:01:26.6]} 39. Kg3 {[%clk 0:01:25.5]} 39... Rc3+ {[%clk 0:01:23.4]} 40.
Kh4 {[%clk 0:01:23.7]} 40... Rd3 {[%clk 0:01:20.1]} 41. d5 {[%clk 0:01:20]}
41... exd5 {[%clk 0:01:18.7]} 42. e5+ {[%clk 0:01:20.3]} 42... Ke6 {[%clk
0:01:15.1]} 43. Kg5 {[%clk 0:01:20.1]} 43... Rd2 {[%clk 0:01:11.9]} 44. Ng7+
{[%clk 0:01:07]} 44... Kf7 {[%clk 0:01:11.5]} 45. Nf5 {[%clk 0:01:07.1]} 45...
Rg2+ {[%clk 0:01:10.4]} 46. Kh4 {[%clk 0:01:07.6]} 46... Be2 {[%clk 0:01:05.3]}
47. Ne3 {[%clk 0:01:04.3]} 47... Rf2 {[%clk 0:01:03.8]} 48. f5 {[%clk
0:00:57.1]} 48... Rf3 {[%clk 0:00:57.6]} 49. e6+ {[%clk 0:00:48.6]} 49... Kf6
{[%clk 0:00:56]} 50. Nxd5+ {[%clk 0:00:40.2]} 50... Kxf5 {[%clk 0:00:53.3]} 51.
e7 {[%clk 0:00:40.4]} 51... Bb5 {[%clk 0:00:52.2]} 52. Rxa6 {[%clk 0:00:24.9]}
52... Rd3 {[%clk 0:00:41.8]} 53. Rb6 {[%clk 0:00:23.3]} 53... Ba4 {[%clk
0:00:30.2]} 54. Ra6 {[%clk 0:00:18.2]} 54... Bd7 {[%clk 0:00:25]} 55. Rd6 {[%clk
0:00:17.3]} 55... Bb5 {[%clk 0:00:18]} 56. Rf6+ {[%clk 0:00:05]} 56... Ke5
{[%clk 0:00:17.3]} 57. Rf8 {[%clk 0:00:03.6]} 57... Rxd5 {[%clk 0:00:15.3]} 58.
e8=Q+ {[%clk 0:00:03.6]} 58... Bxe8 {[%clk 0:00:15.7]} 59. Rxe8+ {[%clk
0:00:04.5]} 59... Kd4 {[%clk 0:00:16.3]} 60. Rg8 {[%clk 0:00:04.6]} 60... Re5
{[%clk 0:00:16.5]} 61. Rg4+ {[%clk 0:00:05.5]} 61... Kd3 {[%clk 0:00:16.8]} 62.
Rf4 {[%clk 0:00:05.2]} 62... Ke3 {[%clk 0:00:16.7]} 63. Rg4 {[%clk 0:00:05.2]}
63... Kf3 {[%clk 0:00:17]} 64. Rg3+ {[%clk 0:00:05.7]} 64... Kf2 {[%clk
0:00:17.4]} 65. Rg4 {[%clk 0:00:06]} 65... Re3 {[%clk 0:00:17.2]} 66. Rg5 {[%clk
0:00:05.8]} 66... Re4+ {[%clk 0:00:16.2]} 67. Kh5 {[%clk 0:00:05.5]} 67... Re8
{[%clk 0:00:16.4]} 68. Kg6 {[%clk 0:00:06.4]} 68... Rg8+ {[%clk 0:00:16.4]} 69.
Kf5 {[%clk 0:00:07.3]} 69... Rf8+ {[%clk 0:00:16.6]} 70. Kg6 {[%clk 0:00:08.1]}
70... Kf3 {[%clk 0:00:16.5]} 71. Rf5+ {[%clk 0:00:09]} 71... Rxf5 {[%clk
0:00:16.9]} 72. Kxf5 {[%clk 0:00:09.9]} 1/2-1/2

[Event "*** Titled Tuesday Blitz"]
[Site "Chess.com"]
[Date "2020.03.03"]
[Round "4"]
[White "SCIM"]
[Black "EugeneRougon"]
[Result "1/2-1/2"]
[WhiteElo "2491"]
[BlackElo "2684"]
[TimeControl "180+1"]
[EndTime "13:42:23 PST"]
[Termination "Game drawn - insufficient material"]

1. d4 {[%clk 0:03:00.9]} 1... d6 {[%clk 0:02:59.5]} 2. e4 {[%clk 0:02:59.4]}
2... Nf6 {[%clk 0:02:58.8]} 3. f3 {[%clk 0:02:59.6]} 3... g6 {[%clk 0:02:53.2]}
4. c4 {[%clk 0:02:59.4]} 4... Bg7 {[%clk 0:02:52.9]} 5. Nc3 {[%clk 0:03:00]}
5... O-O {[%clk 0:02:51.1]} 6. Bg5 {[%clk 0:03:00.3]} 6... h6 {[%clk 0:02:42]}
7. Be3 {[%clk 0:02:58.8]} 7... c5 {[%clk 0:02:42.3]} 8. d5 {[%clk 0:02:57.2]}
8... e6 {[%clk 0:02:40.6]} 9. Qd2 {[%clk 0:02:56]} 9... exd5 {[%clk 0:02:38]}
10. cxd5 {[%clk 0:02:56.9]} 10... a6 {[%clk 0:02:35.4]} 11. a4 {[%clk
0:02:55.9]} 11... Nbd7 {[%clk 0:02:27.7]} 12. Nh3 {[%clk 0:02:50.7]} 12... Rb8
{[%clk 0:02:27.6]} 13. Nf2 {[%clk 0:02:46.6]} 13... h5 {[%clk 0:02:22]} 14. Be2
{[%clk 0:02:43.3]} 14... Nh7 {[%clk 0:02:07.9]} 15. O-O {[%clk 0:02:31.7]} 15...
Ne5 {[%clk 0:02:07.7]} 16. h3 {[%clk 0:02:28.4]} 16... f5 {[%clk 0:02:07.3]} 17.
exf5 {[%clk 0:02:22.4]} 17... Bxf5 {[%clk 0:02:03.1]} 18. Rae1 {[%clk
0:02:16.3]} 18... g5 {[%clk 0:01:51.6]} 19. Nce4 {[%clk 0:01:56.5]} 19... Nf7
{[%clk 0:01:41.5]} 20. g4 {[%clk 0:01:49.5]} 20... Bg6 {[%clk 0:01:39.4]} 21.
Kg2 {[%clk 0:01:39.9]} 21... b5 {[%clk 0:01:33.4]} 22. axb5 {[%clk 0:01:37.7]}
22... axb5 {[%clk 0:01:33.9]} 23. Ra1 {[%clk 0:01:24.7]} 23... Ne5 {[%clk
0:01:13.6]} 24. Ra7 {[%clk 0:01:11.3]} 24... Rf7 {[%clk 0:00:54]} 25. Rfa1
{[%clk 0:01:04.3]} 25... Nc4 {[%clk 0:00:53.9]} 26. Bxc4 {[%clk 0:01:00.3]}
26... bxc4 {[%clk 0:00:54.8]} 27. Rxf7 {[%clk 0:00:56.5]} 27... Bxf7 {[%clk
0:00:53.6]} 28. Nxg5 {[%clk 0:00:40.5]} 28... Rxb2 {[%clk 0:00:48]} 29. Nxf7
{[%clk 0:00:40.1]} 29... Rxd2 {[%clk 0:00:43.2]} 30. Nxd8 {[%clk 0:00:36.7]}
30... Rxf2+ {[%clk 0:00:42.2]} 31. Kxf2 {[%clk 0:00:35.9]} 31... Bxa1 {[%clk
0:00:43.1]} 32. Nb7 {[%clk 0:00:29.4]} 32... hxg4 {[%clk 0:00:38.2]} 33. hxg4
{[%clk 0:00:28.6]} 33... Nf6 {[%clk 0:00:22.1]} 34. Nxd6 {[%clk 0:00:28.1]}
34... c3 {[%clk 0:00:19.4]} 35. Ke2 {[%clk 0:00:21.4]} 35... Nxd5 {[%clk
0:00:18.9]} 36. Ne4 {[%clk 0:00:17.3]} 36... c4 {[%clk 0:00:17.5]} 37. Bc1
{[%clk 0:00:14.8]} 37... Nb4 {[%clk 0:00:15]} 38. f4 {[%clk 0:00:13.1]} 38...
Bb2 {[%clk 0:00:13.8]} 39. Be3 {[%clk 0:00:12.2]} 39... c2 {[%clk 0:00:12.3]}
40. f5 {[%clk 0:00:11.8]} 40... c1=Q {[%clk 0:00:10]} 41. Bxc1 {[%clk
0:00:11.9]} 41... Bxc1 {[%clk 0:00:10.9]} 42. g5 {[%clk 0:00:11.2]} 42... Nd5
{[%clk 0:00:09]} 43. f6 {[%clk 0:00:10.1]} 43... Kf7 {[%clk 0:00:08.4]} 44. Nd6+
{[%clk 0:00:09.2]} 44... Kg6 {[%clk 0:00:07.4]} 45. Nxc4 {[%clk 0:00:10.1]}
45... Bxg5 {[%clk 0:00:06.8]} 46. f7 {[%clk 0:00:11]} 46... Kxf7 {[%clk
0:00:06.9]} 47. Ne5+ {[%clk 0:00:11.4]} 47... Ke6 {[%clk 0:00:07.3]} 48. Nf3
{[%clk 0:00:12.3]} 48... Bf4 {[%clk 0:00:07.7]} 49. Nd4+ {[%clk 0:00:12.4]}
49... Ke5 {[%clk 0:00:07.7]} 50. Nf3+ {[%clk 0:00:13.3]} 50... Ke4 {[%clk
0:00:08.3]} 51. Nd2+ {[%clk 0:00:13.2]} 51... Kf5 {[%clk 0:00:08]} 52. Nf3
{[%clk 0:00:13.2]} 52... Nc3+ {[%clk 0:00:08.4]} 53. Kd3 {[%clk 0:00:12.7]}
53... Nd5 {[%clk 0:00:08.7]} 54. Nd4+ {[%clk 0:00:13.6]} 54... Ke5 {[%clk
0:00:09.3]} 55. Ne2 {[%clk 0:00:14]} 55... Bg5 {[%clk 0:00:09.6]} 56. Nd4 {[%clk
0:00:12.9]} 56... Nf4+ {[%clk 0:00:09.5]} 57. Kc4 {[%clk 0:00:12.8]} 57... Ke4
{[%clk 0:00:09.9]} 58. Nb5 {[%clk 0:00:11.1]} 58... Ne6 {[%clk 0:00:09.4]} 59.
Nc3+ {[%clk 0:00:11.7]} 59... Ke5 {[%clk 0:00:09.4]} 60. Nb5 {[%clk 0:00:11.6]}
60... Be3 {[%clk 0:00:09.1]} 61. Kd3 {[%clk 0:00:11.5]} 61... Bb6 {[%clk
0:00:08.8]} 62. Nc3 {[%clk 0:00:11.9]} 62... Nf4+ {[%clk 0:00:08.8]} 63. Kc4
{[%clk 0:00:11.5]} 63... Bd4 {[%clk 0:00:08.8]} 64. Nb5 {[%clk 0:00:10.4]} 64...
Be3 {[%clk 0:00:09.4]} 65. Nc3 {[%clk 0:00:10.3]} 65... Ne6 {[%clk 0:00:09.1]}
66. Nd5 {[%clk 0:00:09.8]} 66... Bd4 {[%clk 0:00:08.5]} 67. Ne7 {[%clk
0:00:09.7]} 67... Bg1 {[%clk 0:00:06.6]} 68. Nc6+ {[%clk 0:00:09.6]} 68... Kd6
{[%clk 0:00:06.9]} 69. Nb4 {[%clk 0:00:10.3]} 69... Nc5 {[%clk 0:00:05.8]} 70.
Nd3 {[%clk 0:00:11.2]} 70... Ne4 {[%clk 0:00:06.2]} 71. Nf4 {[%clk 0:00:10.8]}
71... Be3 {[%clk 0:00:05.3]} 72. Ne2 {[%clk 0:00:11.1]} 72... Bf2 {[%clk
0:00:04.5]} 73. Nc3 {[%clk 0:00:08.9]} 73... Nf6 {[%clk 0:00:03.8]} 74. Kd3
{[%clk 0:00:09.4]} 74... Ba7 {[%clk 0:00:02.6]} 75. Ne4+ {[%clk 0:00:09.1]}
75... Nxe4 {[%clk 0:00:02.6]} 76. Kxe4 {[%clk 0:00:10]} 1/2-1/2

[Event "*** Titled Tuesday Blitz"]
[Site "Chess.com"]
[Date "2020.03.03"]
[Round "4"]
[White "pouya21"]
[Black "VladDobrov"]
[Result "0-1"]
[WhiteElo "2792"]
[BlackElo "2955"]
[TimeControl "180+1"]
[EndTime "13:42:24 PST"]
[Termination "VladDobrov won by resignation"]

1. e4 {[%clk 0:03:00.9]} 1... c5 {[%clk 0:02:55.5]} 2. Nf3 {[%clk 0:03:01]} 2...
Nc6 {[%clk 0:02:55.6]} 3. Bb5 {[%clk 0:03:00.3]} 3... e6 {[%clk 0:02:55.3]} 4.
O-O {[%clk 0:03:00]} 4... Nge7 {[%clk 0:02:54.6]} 5. d4 {[%clk 0:03:00.3]} 5...
cxd4 {[%clk 0:02:54.6]} 6. Nxd4 {[%clk 0:03:01.2]} 6... Ng6 {[%clk 0:02:52.2]}
7. Be2 {[%clk 0:03:00]} 7... Be7 {[%clk 0:02:47.6]} 8. c4 {[%clk 0:02:59.5]}
8... O-O {[%clk 0:02:47.6]} 9. Nc3 {[%clk 0:02:59.9]} 9... d6 {[%clk 0:02:46.5]}
10. Be3 {[%clk 0:02:59.3]} 10... Bd7 {[%clk 0:02:44.8]} 11. Rc1 {[%clk
0:02:59.2]} 11... Nxd4 {[%clk 0:02:44.2]} 12. Qxd4 {[%clk 0:02:57.2]} 12... Bc6
{[%clk 0:02:45.1]} 13. Rfd1 {[%clk 0:02:56.3]} 13... a6 {[%clk 0:02:44.5]} 14.
b4 {[%clk 0:02:49.1]} 14... Qb8 {[%clk 0:02:40.7]} 15. b5 {[%clk 0:02:47.7]}
15... axb5 {[%clk 0:02:38.4]} 16. cxb5 {[%clk 0:02:48.6]} 16... Bd7 {[%clk
0:02:39.3]} 17. a4 {[%clk 0:02:47]} 17... Rd8 {[%clk 0:02:38.8]} 18. Qd2 {[%clk
0:02:40]} 18... Be8 {[%clk 0:02:37]} 19. Bb6 {[%clk 0:02:38.2]} 19... Rc8 {[%clk
0:02:36.3]} 20. a5 {[%clk 0:02:36.6]} 20... h6 {[%clk 0:02:34]} 21. g3 {[%clk
0:02:27.8]} 21... Ne5 {[%clk 0:02:30.3]} 22. Na4 {[%clk 0:02:18.1]} 22... Bxb5
{[%clk 0:02:23.6]} 23. Nc3 {[%clk 0:02:07.9]} 23... Be8 {[%clk 0:02:18.5]} 24.
f4 {[%clk 0:02:00.7]} 24... Nc4 {[%clk 0:02:17.3]} 25. Bxc4 {[%clk 0:02:01.1]}
25... Rxc4 {[%clk 0:02:18.2]} 26. Qd3 {[%clk 0:01:57.2]} 26... Rc8 {[%clk
0:02:14.3]} 27. Ne2 {[%clk 0:01:53.9]} 27... Bd7 {[%clk 0:01:48.7]} 28. e5
{[%clk 0:01:47.3]} 28... Ba4 {[%clk 0:01:40.9]} 29. Rxc8+ {[%clk 0:01:14.1]}
29... Qxc8 {[%clk 0:01:41.8]} 30. exd6 {[%clk 0:01:14.4]} 30... Bxd1 {[%clk
0:01:38.1]} 31. dxe7 {[%clk 0:01:04.5]} 31... Bxe2 {[%clk 0:01:30.1]} 32. Qd8+
{[%clk 0:01:01.3]} 32... Kh7 {[%clk 0:01:23.1]} 33. e8=Q {[%clk 0:00:54.2]}
33... Qc1+ {[%clk 0:01:21.9]} 34. Kf2 {[%clk 0:00:54.2]} 34... Qf1+ {[%clk
0:01:18.5]} 35. Ke3 {[%clk 0:00:54.2]} 35... Rxd8 {[%clk 0:01:14]} 36. Qxd8
{[%clk 0:00:55]} 36... Bb5 {[%clk 0:01:05]} 37. Qd2 {[%clk 0:00:55.1]} 37...
Qg1+ {[%clk 0:00:59.7]} 38. Ke4 {[%clk 0:00:51.5]} 38... Qf1 {[%clk 0:00:51.4]}
39. Ke5 {[%clk 0:00:50.4]} 39... Qf3 {[%clk 0:00:48]} 40. Qc2+ {[%clk 0:00:48]}
40... Bd3 {[%clk 0:00:45]} 41. Qa2 {[%clk 0:00:43.2]} 41... Qe4+ {[%clk
0:00:38.4]} 42. Kd6 {[%clk 0:00:43.3]} 42... Qc6+ {[%clk 0:00:35.8]} 43. Ke5
{[%clk 0:00:29.5]} 43... Qd7 {[%clk 0:00:31]} 44. f5 {[%clk 0:00:23.6]} 44...
f6+ {[%clk 0:00:30]} 45. Kf4 {[%clk 0:00:23.5]} 45... e5+ {[%clk 0:00:30.2]} 46.
Ke3 {[%clk 0:00:23]} 46... Bxf5 {[%clk 0:00:30.5]} 47. Qg2 {[%clk 0:00:21.4]}
47... Qd3+ {[%clk 0:00:28.4]} 48. Kf2 {[%clk 0:00:21.7]} 48... Qd2+ {[%clk
0:00:28.4]} 49. Kg1 {[%clk 0:00:22]} 49... Qd3 {[%clk 0:00:25.4]} 50. Qf1 {[%clk
0:00:17.4]} 50... Qd7 {[%clk 0:00:20.4]} 51. h4 {[%clk 0:00:15.4]} 51... Be4
{[%clk 0:00:15.5]} 52. Qe1 {[%clk 0:00:15.6]} 52... Qd3 {[%clk 0:00:14.3]} 53.
Qe3 {[%clk 0:00:13.6]} 53... Qb1+ {[%clk 0:00:14.4]} 54. Kf2 {[%clk 0:00:14.5]}
54... Bc6 {[%clk 0:00:14.8]} 55. Qe2 {[%clk 0:00:15.4]} 55... Qf5+ {[%clk
0:00:14.7]} 56. Ke1 {[%clk 0:00:15.4]} 56... h5 {[%clk 0:00:14.7]} 57. Qf2
{[%clk 0:00:15.4]} 57... Qg4 {[%clk 0:00:14.5]} 58. Qe3 {[%clk 0:00:16.3]} 58...
Bf3 {[%clk 0:00:13.2]} 59. Kd2 {[%clk 0:00:17.2]} 59... Qxg3 {[%clk 0:00:13.1]}
60. Qd3+ {[%clk 0:00:17.4]} 60... e4 {[%clk 0:00:13.6]} 61. Qe3 {[%clk
0:00:18.3]} 61... Qxh4 {[%clk 0:00:13]} 62. Kc3 {[%clk 0:00:19.2]} 62... Qg4
{[%clk 0:00:13.1]} 63. Bc7 {[%clk 0:00:19.7]} 63... Qd7 {[%clk 0:00:12.9]} 64.
Bf4 {[%clk 0:00:19]} 64... h4 {[%clk 0:00:13]} 65. Qf2 {[%clk 0:00:18.7]} 65...
g5 {[%clk 0:00:12.3]} 66. Be3 {[%clk 0:00:18.3]} 66... Qc6+ {[%clk 0:00:11.6]}
67. Kd2 {[%clk 0:00:18.4]} 67... Kg6 {[%clk 0:00:12.5]} 68. Bd4 {[%clk
0:00:19.3]} 68... h3 {[%clk 0:00:12.3]} 69. Ke3 {[%clk 0:00:20.2]} 69... Qd6
{[%clk 0:00:12.6]} 70. Qb2 {[%clk 0:00:19.7]} 70... Qf4+ {[%clk 0:00:12.8]} 71.
Kf2 {[%clk 0:00:19.4]} 71... Qh2+ {[%clk 0:00:11]} 72. Ke3 {[%clk 0:00:19.7]}
72... Qxb2 {[%clk 0:00:11.6]} 73. Bxb2 {[%clk 0:00:20.6]} 73... h2 {[%clk
0:00:12.5]} 0-1